[Event "Swiss Championship U16 2022"]
[Site "Biel"]
[Date "2022.07.19"]
[Round "3.7"]
[White "Papaux, Steve"]
[Black "Sosnovski, Nikita"]
[Result "1-0"]
[ECO "E06"]
[WhiteElo "2031"]
[BlackElo "1584"]
[Annotator "TA"]
[PlyCount "88"]
[EventDate "2022.07.18"]
[EventType "swiss"]
[EventCountry "SUI"]
[SourceTitle "playchess.com"]
[Source "ChessBase"]
[SourceQuality "1"]
[TimeControl "5400+30"]

{[%evp 14,88,23,10,41,33,36,28,32,18,35,25,35,8,14,8,14,-18,0,-42,-2,0,8,0,16,14,27,30,47,28,21,29,38,31,85,33,241,216,229,241,666,460,366,259,674,675,695,653,555,285,278,274,259,73,90,0,0,0,0,-58,-54,-478,-84,-112,-118,-130,-88,-152,-160,-156,-158,-164,0,0,0,0,11]} 1. d4 {[%emt 0:00:02]} d5 {[%emt 0:00:05]} 2. c4 {[%emt 0:00:04]} e6 {[%emt 0:00:05]} 3. Nf3 {[%emt 0:00:03]} Nf6 {[%emt 0:00:07]} 4. g3 {[%emt 0:00:07]} c5 {[%emt 0:01:11]} 5. Bg2 {[%emt 0:03:45]} Nc6 {[%emt 0:12:50]} 6. O-O {[%emt 0:08:00]} Be7 {[%emt 0:04:03]} 7. Nc3 {[%emt 0:13:00]} dxc4 {[%emt 0:14:59]} 8. Qa4 {[%emt 0:12:20]} O-O {[%emt 0:02:44] E06: Closed Catalan: Early deviations.} 9. dxc5 {[%emt 0:03:27]} Bxc5 {[%emt 0:09:19]} 10. Qxc4 {[%emt 0:01:07]} Be7 {[%emt 0:22:46] White has an edge.} 11. e4 {[%emt 0:18:07]} e5 {[%emt 0:00:22] [#]} 12. Rd1 $146 {[%emt 0:02:54]} ({Predecessor:} 12. Nd5 Nxd5 13. exd5 Na5 14. Qe4 f5 15. Qxe5 Bf6 16. Qe2 Qxd5 17. Ng5 Qc4 18. Qxc4+ Nxc4 19. Bd5+ Kh8 20. Bxc4 h6 21. Ne6 {1-0 (21) Bubits,B (2137)-Domonkos,N (1747) Miskolc 2011}) 12... Be6 {[%emt 0:02:00]} 13. Qe2 {[%emt 0:01:38]} Qa5 {[%emt 0:07:11]} (13... Nd4 14. Nxd4 exd4 15. e5 $16) 14. Bd2 {[%emt 0:02:01][%cal Oc3d5]} Qc7 {[%emt 0:05:15]} 15. Nb5 {[%emt 0:03:55]} Qb8 {[%emt 0:08:20]} 16. Na3 {[%emt 0:09:19]} Bg4 {[%emt 0:05:31][%cal Be6g4,Bg4h5,Bh5g6][%mdl 32] [#] Strongly threatening ...Bxa3.} (16... Bxa3 $5 17. bxa3 Rd8 $11) 17. Bc3 {[%emt 0:04:33]} Bc5 {[%emt 0:00:31]} 18. h3 {[%emt 0:02:11]} Bh5 {[%emt 0:01:10]} 19. Nc2 {[%emt 0:01:59]} b5 {[%emt 0:01:14]} 20. b4 {[%emt 0:00:56]} Bb6 {[%emt 0:01:16]} 21. g4 {[%emt 0:00:00]} Bg6 {[%emt 0:00:00]} 22. Nh4 {[%emt 0:00:00]} a6 {[%emt 0:00:00]} 23. Nf5 {[%emt 0:00:00]} h5 {[%emt 0:00:00]} (23... Qc7 $14) 24. Nce3 {[%emt 0:01:36]} (24. g5 $16 Nh7 25. h4) 24... Nh7 {[%emt 0:00:00]} (24... hxg4 $14 25. hxg4 Bxf5 26. Nxf5 (26. exf5 Nd4 $11) 26... Rd8) 25. gxh5 $18 {[%emt 0:02:35]} Bxf5 {[%emt 0:00:00]} 26. Nxf5 {[%emt 0:00:28]} (26. exf5 $6 Nd4 27. Bxd4 Bxd4 $16) 26... Qa7 $2 {[%emt 0:00:00]} (26... Kh8 27. a4 (27. Qg4 Rg8 $18) 27... bxa4 28. Rxa4 Qc7) 27. Rd6 {[%emt 0:01:55]} Rac8 {[%emt 0:00:00]} 28. Rad1 {[%emt 0:00:19]} Rc7 $2 {[%emt 0:00:00]} (28... Kh8 29. R1d3 (29. Qg4 Bxf2+ 30. Kf1 Rg8 $18) 29... Rfd8) 29. Qg4 {[%emt 0:03:48][%csl Gf5][%cal Rg4g7]} Bxf2+ {[%emt 0:00:00]} 30. Kh1 {[%emt 0:00:01][%csl Gf5][%cal Rg4g7]} f6 {[%emt 0:00:00]} 31. Qg6 {[%emt 0:00:31]} Kh8 {[%emt 0:00:00]} 32. h6 {[%emt 0:01:49]} gxh6 {[%emt 0:00:00]} 33. Nxh6 $2 {[%emt 0:00:27]} (33. Qxh6 $18 {is more deadly. And now Rf1 would win.} a5 34. bxa5) 33... Rg7 $16 {[%emt 0:00:13] [#]} 34. Qf5 {[%emt 0:00:01] White is more active.} (34. Qh5 $1 $16 Nd4 35. Bxd4 Bxd4 36. Nf5) 34... Ne7 $11 {[%emt 0:01:50]} 35. Qh5 {[%emt 0:02:34]} Qc7 {[%emt 0:01:21]} 36. Ba1 {[%emt 0:00:52]} (36. R6d3 $11) 36... Ng6 $15 {[%emt 0:00:57] aiming for ...Nf4.} 37. Qf5 {[%emt 0:00:40][%mdl 8192]} ({White should try} 37. Nf5 $15 Nf4 38. Qh6) 37... Nf4 $2 {[%emt 0:01:53]} (37... Nh4 $19 38. Qxf2 Rxg2 39. Qxh4 Qc2 40. Nf7+ (40. Ng4 $2 Qxe4 41. Nf2 Qxh4 $19) 40... Rxf7 41. Rd8+ Kg7 42. Bxe5 fxe5) 38. Ng4 {[%emt 0:00:22][%cal Og4e5]} Nxg2 {[%emt 0:00:50]} 39. Kxg2 {[%emt 0:00:36]} Be3 {[%emt 0:00:41] ...Qc2+ is the strong threat.} 40. Kf3 {[%emt 0:00:23]} (40. Qf3 $142 Qc2+ 41. Kh1) 40... Bd4 $1 $17 {[%emt 0:00:43]} 41. R6xd4 {[%emt 0:01:27]} exd4 {[%emt 0:00:09]} 42. Bxd4 {[%emt 0:00:02]} Qd7 $2 {[%emt 0:01:09]} (42... Qc2 $19 43. Nf2 Rfg8) 43. Qxd7 $11 {[%emt 0:00:46] Really sharp!} Rxd7 {[%emt 0:00:01]} 44. Ke3 {[%emt 0:00:09]} Rdf7 {[%emt 0:02:01][%mdl 32768] Weighted Error Value: White=0.59/Black=0.67. Loss on time!?} 1-0

[Event "Swiss Championship U16 2022"]
[Site "Biel"]
[Date "2022.07.19"]
[Round "3.8"]
[White "Gendre, Arthur"]
[Black "Saminskij, David"]
[Result "1/2-1/2"]
[ECO "D55"]
[WhiteElo "1414"]
[BlackElo "1469"]
[Annotator "NA RC COMBH"]
[PlyCount "65"]
[EventDate "2022.07.18"]
[EventType "swiss"]
[EventCountry "SUI"]
[SourceTitle "playchess.com"]
[Source "ChessBase"]
[SourceQuality "1"]
[TimeControl "5400+30"]

1. d4 {[%emt 0:00:03]} d5 {[%emt 0:00:19]} 2. c4 {[%emt 0:00:06]} e6 {[%emt 0:00:13]} 3. Nc3 {[%emt 0:00:08]} Nf6 {[%emt 0:00:16]} 4. Bg5 {[%emt 0:00:12]} Be7 {[%emt 0:00:15]} 5. Nf3 {[%emt 0:00:13]} O-O {[%emt 0:00:10]} 6. e3 {[%emt 0:01:23]} b6 {[%emt 0:00:29]} 7. cxd5 {[%emt 0:00:25]} Nxd5 {[%emt 0:00:04]} 8. Bxe7 {[%emt 0:00:38]} Qxe7 {[%emt 0:01:49]} 9. Nxd5 {[%emt 0:00:23]} exd5 {[%emt 0:00:24]} 10. Bd3 {[%emt 0:00:11]} Bg4 {[%emt 0:00:38]} 11. h3 {[%emt 0:00:00]} Bh5 {[%emt 0:03:45]} 12. O-O {[%emt 0:02:37]} Nd7 {[%emt 0:03:01]} 13. Rc1 {[%emt 0:04:58]} Nf6 {[%emt 0:05:53]} 14. Qc2 {[%emt 0:02:53]} Bxf3 {[%emt 0:00:57]} 15. gxf3 {[%emt 0:00:51]} c5 {[%emt 0:00:20]} 16. dxc5 {[%emt 0:00:22]} Rac8 {[%emt 0:00:45]} 17. c6 {[%emt 0:01:19]} Rfd8 {[%emt 0:10:10]} 18. Bb5 {[%emt 0:01:57]} d4 {[%emt 0:10:14]} 19. c7 {[%emt 0:02:09]} Rd5 {[%emt 0:01:25]} 20. Ba6 {[%emt 0:01:47]} Rc5 {[%emt 0:01:09]} 21. Bxc8 {[%emt 0:00:22]} Rxc2 {[%emt 0:00:00]} 22. Rxc2 {[%emt 0:00:53]} Nd5 {[%emt 0:01:43]} 23. Rfc1 {[%emt 0:01:43]} dxe3 {[%emt 0:01:43]} 24. Bg4 {[%emt 0:00:18]} exf2+ {[%emt 0:01:00]} 25. Kxf2 {[%emt 0:18:43]} Qe3+ {[%emt 0:00:26]} 26. Kg2 {[%emt 0:00:39]} Nxc7 {[%emt 0:00:10]} 27. Rxc7 {[%emt 0:00:24]} h5 {[%emt 0:01:28]} 28. Rc8+ {[%emt 0:00:42]} Kh7 {[%emt 0:00:16]} 29. Bf5+ {[%emt 0:00:17]} g6 {[%emt 0:00:00]} 30. Be4 {[%emt 0:00:52]} f5 {[%emt 0:00:26]} 31. R1c7+ {[%emt 0:00:17]} Kh6 {[%emt 0:00:12]} 32. Rh8+ {[%emt 0:00:14]} Kg5 {[%emt 0:15:33]} 33. Ba8 {[%emt 0:01:20]} 1/2-1/2

[Event "Swiss Championship U16 2022"]
[Site "Biel"]
[Date "2022.07.19"]
[Round "4.1"]
[White "Zargarov, Mikayel"]
[Black "Gemelli, Romain"]
[Result "1/2-1/2"]
[ECO "E60"]
[WhiteElo "1994"]
[BlackElo "2045"]
[Annotator "NA RC"]
[PlyCount "78"]
[EventDate "2022.07.18"]
[EventType "swiss"]
[EventCountry "SUI"]
[SourceTitle "playchess.com"]
[Source "ChessBase"]
[SourceQuality "1"]
[TimeControl "5400+30"]

1. d4 {[%emt 0:02:48]} d6 {[%emt 0:00:23]} 2. Nf3 {[%emt 0:00:32]} g6 {[%emt 0:01:33]} 3. c4 {[%emt 0:00:09]} Nf6 {[%emt 0:00:00]} 4. Bf4 {[%emt 0:00:39]} Bg7 {[%emt 0:00:17]} 5. h3 {[%emt 0:01:21]} c5 {[%emt 0:00:28]} 6. dxc5 {[%emt 0:05:31]} Qa5+ {[%emt 0:19:06]} 7. Bd2 {[%emt 0:20:54]} Qxc5 {[%emt 0:00:46]} 8. e3 {[%emt 0:04:02]} Ne4 {[%emt 0:00:00]} 9. Qc1 {[%emt 0:00:55]} Nxd2 {[%emt 0:05:06]} 10. Nbxd2 {[%emt 0:00:49]} O-O {[%emt 0:04:48]} 11. Bd3 {[%emt 0:07:03]} Nd7 {[%emt 0:00:00]} 12. O-O {[%emt 0:25:53]} Ne5 {[%emt 0:14:30]} 13. Nxe5 {[%emt 0:01:12]} Bxe5 {[%emt 0:02:47]} 14. Rb1 {[%emt 0:03:50]} a5 {[%emt 0:04:04]} 15. Nb3 {[%emt 0:03:38]} Qc7 {[%emt 0:03:08]} 16. Qd2 {[%emt 0:03:51]} Bd7 {[%emt 0:13:23]} 17. Nd4 {[%emt 0:03:27]} Bc6 {[%emt 0:05:37]} 18. b3 {[%emt 0:07:03]} Bg7 {[%emt 0:01:59]} 19. a3 {[%emt 0:03:33]} e5 {[%emt 0:01:11]} 20. Nxc6 {[%emt 0:00:49]} bxc6 {[%emt 0:01:26]} 21. b4 {[%emt 0:06:47]} axb4 {[%emt 0:01:43]} 22. axb4 {[%emt 0:03:37]} f5 {[%emt 0:02:06]} 23. b5 {[%emt 0:01:48]} Rfb8 {[%emt 0:01:08]} 24. Be2 {[%emt 0:07:46]} Rb6 {[%emt 0:02:34]} 25. Rfd1 {[%emt 0:00:06]} Bf8 {[%emt 0:04:17]} 26. Ra1 {[%emt 0:01:32]} Rbb8 {[%emt 0:02:51]} 27. Qb2 {[%emt 0:00:58]} Qb6 {[%emt 0:00:38]} 28. Ra2 {[%emt 0:00:00]} e4 {[%emt 0:02:53]} 29. Rxa8 {[%emt 0:00:00]} Rxa8 {[%emt 0:00:10]} 30. Qf6 {[%emt 0:02:21]} Qc7 {[%emt 0:02:08]} 31. Qb2 {[%emt 0:00:00]} Bg7 {[%emt 0:03:09]} 32. Qb3 {[%emt 0:01:24]} c5 {[%emt 0:00:40]} 33. b6 {[%emt 0:00:55]} Qc6 {[%emt 0:00:15]} 34. b7 {[%emt 0:00:00]} Rb8 {[%emt 0:00:59]} 35. Rb1 {[%emt 0:00:00]} Be5 {[%emt 0:02:01]} 36. Qa3 {[%emt 0:00:00]} Kg7 {[%emt 0:01:00]} 37. Qa7 {[%emt 0:00:00]} d5 {[%emt 0:00:00]} 38. cxd5 {[%emt 0:00:00]} Qxd5 {[%emt 0:00:34]} 39. Rd1 {[%emt 0:00:00]} Qc6 {[%emt 0:01:29]} 1/2-1/2

[Event "Swiss Championship U16 2022"]
[Site "Biel"]
[Date "2022.07.19"]
[Round "4.2"]
[White "Kostov, Kyrill"]
[Black "Kasipour Azbari, Seyed Arvin"]
[Result "1/2-1/2"]
[ECO "B26"]
[WhiteElo "2008"]
[BlackElo "1944"]
[Annotator "TA"]
[PlyCount "69"]
[EventDate "2022.07.18"]
[EventType "swiss"]
[EventCountry "SUI"]
[SourceTitle "playchess.com"]
[Source "ChessBase"]
[SourceQuality "1"]
[TimeControl "5400+30"]

{[%evp 19,69,0,0,-16,-4,-35,-32,-79,-82,-117,-118,-120,-111,-113,-131,-130,-93,-198,-192,-245,-227,-235,-221,-186,-173,-171,-110,-161,-52,-52,-20,-21,-20,-22,-22,-14,0,0,68,59,54,0,0,0,0,1,1,-20,-26,-31,-26,-59]} 1. e4 {[%emt 0:00:06]} c5 {[%emt 0:00:49]} 2. Nc3 {[%emt 0:01:03]} Nc6 {[%emt 0:00:30]} 3. g3 {[%emt 0:00:14]} g6 {[%emt 0:00:42]} 4. Bg2 {[%emt 0:00:21]} Bg7 {[%emt 0:00:25]} 5. Nge2 {[%emt 0:00:07]} d6 {[%emt 0:00:44]} 6. O-O {[%emt 0:00:22]} e6 {[%emt 0:01:28]} 7. d3 {[%emt 0:03:20]} Nge7 {[%emt 0:02:08]} 8. Be3 {[%emt 0:03:52]} Nd4 {[%emt 0:00:54]} 9. Rb1 {[%emt 0:03:05]} Rb8 {[%emt 0:10:15]} 10. Qd2 {[%emt 0:05:21]} O-O {[%emt 0:08:42]} 11. Nd1 {[%emt 0:06:57] B26: Closed Sicilian: 3 g3, lines with early Be3.} b5 {[%emt 0:04:19][%cal Bb7b5,Bb5b4][%mdl 32]} 12. f4 {[%emt 0:09:32]} b4 {[%emt 0:06:21]} 13. Bxd4 {[%emt 0:11:51]} (13. Ra1 $15) 13... cxd4 $17 {[%emt 0:03:22] [#]} 14. g4 $146 {[%emt 0:02:14]} ({Predecessor:} 14. Nf2 a5 15. a3 Bd7 16. axb4 Rxb4 17. c3 dxc3 18. bxc3 Rb8 19. Rb2 Rxb2 20. Qxb2 {0-1 (50) Dejanovic,T-Schneider,J (1651) Mureck 2012}) 14... f5 {[%emt 0:01:15]} 15. g5 {[%emt 0:02:59]} e5 {[%emt 0:06:41]} 16. Nf2 {[%emt 0:19:13]} Qb6 {[%emt 0:02:41]} 17. Rbe1 {[%emt 0:09:04]} Ba6 {[%emt 0:05:07]} 18. exf5 {[%emt 0:00:49]} (18. Ng3 $17) 18... Nxf5 $19 {[%emt 0:03:16]} 19. Ng4 {[%emt 0:00:00] [#]} (19. fxe5 $142 Ne3 20. e6) 19... Ne3 $1 20. Nxe3 {[%emt 0:07:04]} dxe3 {[%emt 0:00:40]} 21. Qc1 {[%emt 0:02:10]} exf4 {[%emt 0:09:36]} 22. Rxf4 {[%emt 0:00:00] [#]} Qc5 {[%emt 0:08:52]} ({Inferior is} 22... Rxf4 23. Nxf4 Bb7 24. c3 $17) (22... Rfe8 $1 $19 23. Qb1 Qb5) 23. Ref1 {[%emt 0:00:00]} (23. d4 $17 {was called for.} Qxg5 24. Qxe3) 23... Qxg5 {[%emt 0:04:56]} (23... Rfe8 $19 24. Qe1 Re7) 24. Qxe3 $15 {[%emt 0:00:00] Black must now prevent Rxf8+.} Qe5 {[%emt 0:04:25]} 25. Qxe5 {[%emt 0:02:37]} dxe5 {[%emt 0:01:10]} 26. Bd5+ {[%emt 0:00:44]} Kh8 {[%emt 0:00:29]} 27. Rf7 {[%emt 0:00:29]} Rxf7 {[%emt 0:03:36]} 28. Rxf7 {[%emt 0:00:32]} Rf8 {[%emt 0:00:16]} (28... Bh6 $11) 29. Rxa7 $14 {[%emt 0:01:08] White is more active.} Bc8 {[%emt 0:00:02]} 30. Rf7 {[%emt 0:02:07]} ({White should try} 30. Ra8 $14) 30... Rxf7 $11 {[%emt 0:00:27]} 31. Bxf7 {[%emt 0:00:02]} e4 {[%emt 0:00:21]} 32. dxe4 {[%emt 0:03:51]} Bxb2 {[%emt 0:00:20]} 33. Kg2 {[%emt 0:01:23]} Kg7 {[%emt 0:01:08][%mdl 1024] Black has compensation.} 34. Bb3 {[%emt 0:01:02]} g5 {[%emt 0:01:21]} 35. Kf3 {[%emt 0:02:00] Black had all chances to win.  Weighted Error Value: White=0.22 (precise) /Black=0.18 (very precise)} 1/2-1/2

[Event "Swiss Championship U16 2022"]
[Site "Biel"]
[Date "2022.07.19"]
[Round "4.3"]
[White "Erne, Raphael"]
[Black "Doetsch-Thaler, Nicos"]
[Result "1/2-1/2"]
[ECO "A13"]
[WhiteElo "2060"]
[BlackElo "1837"]
[Annotator "NA RC"]
[PlyCount "73"]
[EventDate "2022.07.18"]
[EventType "swiss"]
[EventCountry "SUI"]
[SourceTitle "playchess.com"]
[Source "ChessBase"]
[SourceQuality "1"]
[TimeControl "5400+30"]

1. c4 {[%emt 0:00:18]} e6 {[%emt 0:00:15]} 2. g3 {[%emt 0:00:17]} d5 {[%emt 0:00:06]} 3. Bg2 {[%emt 0:00:13]} Nf6 {[%emt 0:00:22]} 4. Nf3 {[%emt 0:00:32]} dxc4 {[%emt 0:01:22]} 5. Qa4+ {[%emt 0:00:31]} Nbd7 {[%emt 0:00:00]} 6. Qxc4 {[%emt 0:00:35]} a6 {[%emt 0:00:54]} 7. O-O {[%emt 0:00:38]} b5 {[%emt 0:01:04]} 8. Qc2 {[%emt 0:01:21]} Bb7 {[%emt 0:05:16]} 9. b3 {[%emt 0:04:41]} c5 {[%emt 0:00:50]} 10. Bb2 {[%emt 0:02:14]} Be7 {[%emt 0:07:53]} 11. d3 {[%emt 0:00:48]} O-O {[%emt 0:00:46]} 12. e3 {[%emt 0:16:43]} Rc8 {[%emt 0:02:23]} 13. Qe2 {[%emt 0:05:09]} Qb6 {[%emt 0:03:52]} 14. Nbd2 {[%emt 0:06:27]} Rfd8 {[%emt 0:07:38]} 15. e4 {[%emt 0:12:41]} Nb8 {[%emt 0:09:19]} 16. Rfd1 {[%emt 0:02:06]} Nc6 {[%emt 0:05:40]} 17. Nf1 {[%emt 0:06:49]} Rd7 {[%emt 0:08:05]} 18. Ne3 {[%emt 0:00:49]} Nd4 {[%emt 0:02:00]} 19. Nxd4 {[%emt 0:00:11]} cxd4 {[%emt 0:01:20]} 20. Nc2 {[%emt 0:19:45]} Rdd8 {[%emt 0:11:57]} 21. Rac1 {[%emt 0:01:15]} e5 {[%emt 0:01:05]} 22. f4 {[%emt 0:01:33]} Nd7 {[%emt 0:03:32]} 23. Bh3 {[%emt 0:01:36]} exf4 {[%emt 0:00:58]} 24. gxf4 {[%emt 0:01:05]} Qh6 {[%emt 0:07:08]} 25. Qf3 {[%emt 0:08:49]} g5 {[%emt 0:03:15]} 26. Nxd4 {[%emt 0:02:01]} Rxc1 {[%emt 0:01:20]} 27. Rxc1 {[%emt 0:00:30]} Bc5 {[%emt 0:03:36]} 28. Bxd7 {[%emt 0:00:22]} Bxd4+ {[%emt 0:07:44]} 29. Bxd4 {[%emt 0:00:00]} Rxd7 {[%emt 0:03:58]} 30. Be5 {[%emt 0:00:40]} f6 {[%emt 0:00:00]} 31. Bb2 {[%emt 0:00:59]} gxf4 {[%emt 0:00:00]} 32. Kh1 {[%emt 0:02:08]} Rg7 {[%emt 0:04:08]} 33. Rf1 {[%emt 0:00:42]} Rg3 {[%emt 0:00:00]} 34. Rg1 {[%emt 0:01:02]} Rxg1+ {[%emt 0:00:00]} 35. Kxg1 {[%emt 0:00:00]} Qg5+ {[%emt 0:01:31]} 36. Qg2 {[%emt 0:00:51]} Kf7 {[%emt 0:01:26]} 37. Qxg5 {[%emt 0:00:30]} 1/2-1/2

[Event "Swiss Championship U16 2022"]
[Site "Biel"]
[Date "2022.07.19"]
[Round "4.4"]
[White "Knapp, Yanik"]
[Black "Papaux, Steve"]
[Result "1/2-1/2"]
[ECO "D36"]
[WhiteElo "1675"]
[BlackElo "2031"]
[Annotator "NA RC"]
[PlyCount "118"]
[EventDate "2022.07.18"]
[EventType "swiss"]
[EventCountry "SUI"]
[SourceTitle "playchess.com"]
[Source "ChessBase"]
[SourceQuality "1"]
[TimeControl "5400+30"]

1. d4 {[%emt 0:00:03]} d5 {[%emt 0:00:03]} 2. c4 {[%emt 0:00:07]} e6 {[%emt 0:00:05]} 3. Nc3 {[%emt 0:00:09]} Nf6 {[%emt 0:00:07]} 4. cxd5 {[%emt 0:00:09]} exd5 {[%emt 0:00:08]} 5. Bg5 {[%emt 0:00:09]} Be7 {[%emt 0:00:11]} 6. e3 {[%emt 0:00:16]} O-O {[%emt 0:00:38]} 7. Bd3 {[%emt 0:00:12]} c6 {[%emt 0:00:23]} 8. Nge2 {[%emt 0:00:46]} Nbd7 {[%emt 0:00:28]} 9. Qc2 {[%emt 0:00:31]} Re8 {[%emt 0:00:20]} 10. O-O {[%emt 0:02:43]} Nf8 {[%emt 0:01:55]} 11. Rab1 {[%emt 0:02:43]} g6 {[%emt 0:04:10]} 12. b4 {[%emt 0:01:04]} Ne6 {[%emt 0:01:58]} 13. Bh4 {[%emt 0:06:50]} Ng7 {[%emt 0:06:06]} 14. b5 {[%emt 0:02:36]} Bf5 {[%emt 0:01:43]} 15. bxc6 {[%emt 0:01:43]} bxc6 {[%emt 0:03:30]} 16. Rb7 {[%emt 0:04:53]} Bxd3 {[%emt 0:00:00]} 17. Qxd3 {[%emt 0:01:40]} Nf5 {[%emt 0:01:47]} 18. Bg3 {[%emt 0:00:51]} Bd6 {[%emt 0:07:42]} 19. Rc1 {[%emt 0:02:23]} Bxg3 {[%emt 0:01:24]} 20. Nxg3 {[%emt 0:09:02]} Nd6 {[%emt 0:01:43]} 21. Rbb1 {[%emt 0:02:02]} h5 {[%emt 0:03:24]} 22. Nf1 {[%emt 0:03:51]} h4 {[%emt 0:03:55]} 23. h3 {[%emt 0:10:28]} g5 {[%emt 0:00:59]} 24. Nd2 {[%emt 0:27:25]} Rc8 {[%emt 0:04:00]} 25. Na4 {[%emt 0:00:25]} g4 {[%emt 0:03:29]} 26. Nc5 {[%emt 0:03:01]} gxh3 {[%emt 0:00:20]} 27. gxh3 {[%emt 0:00:00]} Kh8 {[%emt 0:03:55]} 28. Kh1 {[%emt 0:01:37]} Nfe4 {[%emt 0:01:52]} 29. Ndxe4 {[%emt 0:01:35]} Nxe4 {[%emt 0:04:26]} 30. Nxe4 {[%emt 0:00:00]} Rxe4 {[%emt 0:04:11]} 31. Qe2 {[%emt 0:02:10]} Qg5 {[%emt 0:01:08]} 32. Rg1 {[%emt 0:00:00]} Qf5 {[%emt 0:02:44]} 33. Kh2 {[%emt 0:03:24]} c5 {[%emt 0:08:29]} 34. Rbc1 {[%emt 0:00:30]} c4 {[%emt 0:02:17]} 35. Rg4 {[%emt 0:01:10]} Rxg4 {[%emt 0:00:00]} 36. hxg4 {[%emt 0:00:16]} Qg6 {[%emt 0:03:22]} 37. Qf3 {[%emt 0:02:40]} Rg8 {[%emt 0:04:24]} 38. Rg1 {[%emt 0:00:52]} Qe6 {[%emt 0:03:07]} 39. Kh3 {[%emt 0:03:19]} Rg6 {[%emt 0:02:28]} 40. Kxh4 {[%emt 0:02:58]} f5 {[%emt 0:02:20]} 41. g5 {[%emt 0:06:08]} Qe4+ {[%emt 0:00:24]} 42. Qxe4 {[%emt 0:00:00]} fxe4 {[%emt 0:02:33]} 43. Kg4 {[%emt 0:01:01]} Ra6 {[%emt 0:02:07]} 44. Ra1 {[%emt 0:02:31]} Kg7 {[%emt 0:00:30]} 45. Kf5 {[%emt 0:01:29]} Rd6 {[%emt 0:01:06]} 46. a4 {[%emt 0:01:23]} Kf7 {[%emt 0:00:38]} 47. Rb1 {[%emt 0:00:19]} Rb6 {[%emt 0:00:36]} 48. Ra1 {[%emt 0:01:55]} a5 {[%emt 0:00:39]} 49. Ke5 {[%emt 0:02:14]} Rb2 {[%emt 0:00:37]} 50. Kxd5 {[%emt 0:00:08]} Rxf2 {[%emt 0:00:40]} 51. Kxc4 {[%emt 0:00:30]} Re2 {[%emt 0:00:10]} 52. Ra3 {[%emt 0:00:12]} Rd2 {[%emt 0:00:32]} 53. Kd5 {[%emt 0:00:04]} Rd3 {[%emt 0:00:34]} 54. Ra2 {[%emt 0:00:00]} Rxe3 {[%emt 0:00:41]} 55. Rf2+ {[%emt 0:02:22]} Kg6 {[%emt 0:00:15]} 56. Rf4 {[%emt 0:00:04]} Kxg5 {[%emt 0:00:00]} 57. Rxe4 {[%emt 0:00:00]} Ra3 {[%emt 0:00:27]} 58. Kc5 {[%emt 0:00:32]} Rxa4 {[%emt 0:00:04]} 59. Kb6 {[%emt 0:00:45]} Kf5 {[%emt 0:00:10]} 1/2-1/2

[Event "Swiss Championship U16 2022"]
[Site "Biel"]
[Date "2022.07.19"]
[Round "4.5"]
[White "Rotunno, Flavio"]
[Black "Palmonella, Valentin"]
[Result "1-0"]
[ECO "D02"]
[WhiteElo "1901"]
[BlackElo "1778"]
[Annotator "TA"]
[PlyCount "61"]
[EventDate "2022.07.18"]
[EventType "swiss"]
[EventCountry "SUI"]
[SourceTitle "playchess.com"]
[Source "ChessBase"]
[SourceQuality "1"]
[TimeControl "5400+30"]

{[%evp 11,61,28,55,44,55,47,78,86,74,27,113,113,94,102,185,183,181,181,193,183,302,295,361,243,235,98,82,28,306,310,297,320,902,870,1312,1249,1379,1458,1456,1350,29970,8904,9412,7868,5402,5385,2880,2250,1512,1510,29998,29999]} 1. d4 {[%emt 0:03:29]} Nf6 {[%emt 0:00:07]} 2. Nf3 {[%emt 0:01:41]} e6 {[%emt 0:00:25]} 3. Bf4 {[%emt 0:00:34]} c5 {[%emt 0:04:27]} 4. e3 {[%emt 0:04:15]} d5 {[%emt 0:03:30]} 5. c3 {[%emt 0:00:14]} Qb6 {[%emt 0:01:14]} 6. Qb3 {[%emt 0:01:12]} c4 {[%emt 0:03:30]} 7. Qc2 {[%emt 0:02:01] D02: 1 d4 d5 2 Nf3 sidelines, including 2...Nf6 3 g3 and 2...Nf6 3 Bf4.} Qa5 {[%emt 0:03:51]} 8. Nbd2 {[%emt 0:02:03]} Be7 {[%emt 0:04:28]} 9. Be2 {[%emt 0:05:36] [#] White is better.} O-O $146 {[%emt 0:00:33]} ({Predecessor:} 9... Nc6 10. O-O h6 11. h3 b5 12. b3 Qd8 13. a4 cxb3 14. Qxb3 bxa4 15. Rxa4 Bd7 {½-½ (61) Montero Martinez,C (2021)-Lemus Pena,M (1737) Vina del Mar 2022}) 10. e4 {[%emt 0:01:21]} ({White should play} 10. O-O $16) 10... dxe4 {[%emt 0:16:43]} (10... Nh5 $11 11. Be3 f5) 11. Nxe4 $16 {[%emt 0:01:57]} Nxe4 {[%emt 0:21:30]} 12. Qxe4 {[%emt 0:00:43]} Ba3 {[%emt 0:03:15]} 13. Qc2 $18 {[%emt 0:09:28]} (13. Bxc4 Bxb2 14. O-O Bxa1 $11) ({Don't take} 13. Ng5 $6 g6 $16) 13... Be7 {[%emt 0:00:38]} 14. Bxc4 {[%emt 0:00:51]} Nd7 {[%emt 0:00:17]} 15. Bd3 {[%emt 0:03:41]} g6 {[%emt 0:00:38]} (15... Nf6 $142 16. O-O Bd7) 16. h4 {[%emt 0:03:47]} Nf6 {[%emt 0:00:29]} 17. Bg5 {[%emt 0:01:20][%cal Oh4h5] And now h5! would win.} Re8 {[%emt 0:00:26]} 18. Bxf6 {[%emt 0:10:42]} (18. Qe2 $18 {is more deadly.}) 18... Bxf6 $16 {[%emt 0:00:02]} 19. h5 {[%emt 0:03:08]} (19. Qb3 $16) 19... Kg7 $2 {[%emt 0:07:52][%mdl 8192] This move loses the game for Black.} (19... e5 $1 $11 {and Black stays safe.}) 20. hxg6 $18 {[%emt 0:10:23]} hxg6 {[%emt 0:00:29]} 21. Qd2 {[%emt 0:00:58]} Kf8 $2 {[%emt 0:11:48]} (21... e5 22. dxe5 (22. Qh6+ Kg8 $18) 22... Rxe5+ 23. Nxe5 Qxe5+ 24. Qe2 Be6 25. Qxe5 Bxe5) 22. Qf4 {[%emt 0:04:17]} Ke7 {[%emt 0:00:29]} 23. Ne5 {[%emt 0:03:17]} Rf8 {[%emt 0:02:49]} 24. Rh7 {[%emt 0:02:16]} Bxe5 {[%emt 0:01:01]} 25. dxe5 {[%emt 0:00:08] White threatens 0-0-0 and mate.} ({Weaker is} 25. Qxe5 Qxe5+ 26. dxe5 Rg8 $16) 25... Ke8 {[%emt 0:00:18]} 26. O-O-O {[%emt 0:11:21][%cal Od3g6] Bxg6! would kill now.} Qc5 {[%emt 0:04:37] [#]} 27. Rxf7 $3 {[%emt 0:03:52][%mdl 512]} Rxf7 {[%emt 0:00:34]} 28. Bxg6 {[%emt 0:00:04][%csl Gg6][%cal Rf4f7][%mdl 64] Pin} Qe7 {[%emt 0:02:46]} 29. Bxf7+ {[%emt 0:00:42]} Qxf7 {[%emt 0:00:12] [#]} 30. Rd8+ $3 {[%emt 0:00:04][%mdl 512]} Ke7 {[%emt 0:00:43]} (30... Kxd8 31. Qxf7) 31. Qg5+ {[%emt 0:00:05] Weighted Error Value: White=0.23 (precise) /Black=1.37} 1-0